bitfinex-derivatives/quotes_ETHF0:USTF0_20250320
["timestamp","ask_amount","ask_price","bid_price","bid_amount"]
[1742479681750,3.2078,1995.5,1995.0,46.322]
[1742479681941,1.00275,1995.3,1995.2,1.00276]
[1742479682253,1.00277,1995.3,1995.2,1.00277]
[1742479682449,1.00277,1995.3,1995.1,1.00281]
[1742479682450,1.0028,1995.2,1995.1,1.00281]
[1742479682753,10.38905,1995.3,1994.8,3.623]
[1742479682950,5.67727,1995.1,1995.0,0.00752634]
[1742479683141,8.88507,1995.1,1995.0,0.00752634]
[1742479683345,11.38507,1995.1,1995.0,0.00752634]
[1742479683545,8.88507,1995.1,1995.0,0.00752634]
[1742479683751,8.88507,1995.1,1995.0,1.01040634]
[1742479684148,8.88507,1995.1,1995.0,0.00752634]
[1742479684756,11.38507,1995.1,1995.0,0.00752634]
[1742479684956,1.00298,1994.8,1994.7,1.003]
[1742479685146,3.2078,1994.9,1994.6,1.00306]
[1742479685455,9.1722,1994.7,1994.6,1.00308]
[1742479685656,4.5449,1994.7,1994.6,1.00308]
[1742479687153,5.54793,1994.7,1994.5,51.75362634]
[1742479687354,4.5449,1994.7,1994.6,1.00308]
[1742479687754,4.5449,1994.7,1994.5,50.75052634]
[1742479687956,5.54796,1994.7,1994.5,51.75364634]
[1742479688156,4.5449,1994.7,1994.6,1.00308]
[1742479688655,4.6273,1995.0,1994.9,1.00293]
[1742479688854,4.6273,1995.0,1994.7,3.609]
[1742479689159,4.6273,1995.0,1994.9,1.00293]
[1742479689351,5.63018,1995.0,1994.8,1.00295]
[1742479689555,4.6273,1995.0,1994.9,1.00293]
[1742479689951,9.1952,1995.0,1994.9,1.00293]
[1742479690658,4.5679,1995.0,1994.9,1.00293]
[1742479691158,7.5722,1995.5,1995.4,1.00268]
[1742479691353,4.3644,1995.5,1995.4,1.00268]
[1742479691554,4.6493,1995.6,1995.5,1.00263]
[1742479691760,5.65188,1995.6,1995.5,1.00263]
[1742479691960,5.65188,1995.6,1995.4,1.00266]
[1742479692159,3.2078,1995.5,1995.3,1.0027]
[1742479692351,4.21047,1995.5,1995.3,1.0027]
[1742479692557,4.5679,1995.4,1995.3,1.0027]
[1742479693860,4.5679,1995.4,1995.2,46.332]
[1742479694056,1.00282,1995.2,1995.0,3.2078]
[1742479694365,5.55295,1995.1,1994.9,4.6089]
[1742479694558,1.00288,1995.0,1994.9,7.8798]
[1742479694862,5.55298,1995.0,1994.9,7.8798]
[1742479695059,5.55298,1995.0,1994.9,4.60893]
[1742479695257,5.55298,1995.0,1994.7,49.5368]
[1742479695258,4.5501,1995.0,1994.8,5.27676]
[1742479695463,5.55301,1995.0,1994.9,1.00293]
[1742479696265,4.5501,1995.0,1994.9,1.00293]
[1742479697262,4.5501,1995.0,1994.7,47.33201]
[1742479697559,1.00298,1994.8,1994.7,47.33203]
[1742479697956,1.00298,1994.8,1994.6,1.00305]
[1742479697957,1.00303,1994.7,1994.6,1.00305]
[1742479698262,8.7767,1994.8,1994.5,1.01063634]
[1742479698263,1.00308,1994.6,1994.5,1.01063634]
[1742479698563,8.633,1994.6,1994.5,1.01063634]
[1742479698763,8.633,1994.6,1994.5,5.57913634]
[1742479699267,9.63608,1994.6,1994.5,5.57913634]
[1742479699457,9.63608,1994.6,1994.5,0.00752634]
[1742479699653,15.73908,1994.6,1994.5,0.00752634]
[1742479699860,2.5079,1994.5,1993.9,3.2078]
[1742479700060,1.00333,1994.1,1994.0,4.2363]
[1742479700361,1.0033,1994.2,1994.1,1.0033]
[1742479700568,1.00333,1994.1,1994.0,5.23966]
[1742479700758,1.00333,1994.1,1994.0,5.23969]
[1742479701059,1.00339,1994.0,1993.9,0.00501757]
[1742479701767,5.64569,1994.0,1993.9,1.00845757]
[1742479701957,8.85349,1994.0,1993.9,1.00845757]
[1742479702163,7.8501,1994.0,1993.9,1.00845757]
[1742479702660,5.64569,1994.0,1993.9,0.00501757]
[1742479702861,4.6423,1994.0,1993.9,1.00845757]
[1742479703067,1.00337,1994.1,1994.0,1.00339]
[1742479703265,1.00337,1994.1,1994.0,5.35879]
[1742479703471,1.00333,1994.1,1994.0,5.35875]
[1742479703667,0.00752634,1994.2,1994.1,1.00333]
[1742479704067,1.00315,1994.5,1994.4,1.00316]
[1742479704467,3.2078,1994.6,1994.2,4.3554]
[1742479704664,3.2078,1994.6,1993.7,46.333]
[1742479704665,7.5011,1994.4,1993.9,0.00501757]
[1742479704865,5.29651,1994.4,1994.3,1.00323]
[1742479705264,4.2933,1994.4,1994.3,1.00323]
[1742479705665,0.00752634,1994.5,1994.4,1.00318]
[1742479705862,19.54478839,1995.1,1995.0,1.00288]
[1742479706259,16.575,1995.3,1994.8,3.604]
[1742479706459,19.08185,1995.3,1994.9,1.00291]
[1742479706667,4.21067,1995.1,1994.9,4.6066]
[1742479706867,1.00293,1994.9,1994.8,3.604]
[1742479707063,1.00293,1994.9,1994.8,0.00752634]
[1742479707269,4.21073,1994.9,1994.8,0.00752634]
[1742479707671,5.35711,1995.0,1994.9,1.00293]
[1742479708070,0.00752634,1995.2,1994.8,8.22312634]
[1742479708371,0.00752634,1995.2,1995.0,1.00285]
[1742479708372,1.00285,1995.1,1995.0,1.00285]
[1742479708673,1.00293,1994.9,1994.8,0.00752634]
[1742479708974,1.00308,1994.6,1994.5,4.2879]
[1742479709172,1.00306,1994.7,1994.6,1.00306]
[1742479709373,5.7154,1994.7,1994.2,3.61]
[1742479709571,1.00327,1994.3,1994.2,1.00326]
[1742479709769,1.00322,1994.4,1994.3,1.00321]
[1742479709968,1.00325,1994.3,1994.2,1.00324]
[1742479710273,1.00325,1994.3,1994.2,1.01080634]
[1742479710475,9.70752,1994.4,1994.3,1.00323]
[1742479710774,1.00323,1994.3,1994.2,1.01077634]
[1742479710985,1.00323,1994.3,1994.2,0.00752634]
[1742479711478,1.00323,1994.3,1994.2,1.01077634]
[1742479711675,4.6435,1994.4,1994.3,1.00323]
[1742479711871,4.6435,1994.4,1994.3,5.43353]
[1742479712271,5.64668,1994.4,1994.3,5.43353]
[1742479712470,5.64668,1994.4,1994.3,4.4303]
[1742479712665,5.64668,1994.4,1994.3,5.43353]
[1742479712872,5.64668,1994.4,1994.3,4.4303]
[1742479713073,1.00323,1994.3,1994.2,0.00752634]
[1742479713379,14.84763,1994.3,1994.2,1.01080634]
[1742479713577,13.8444,1994.3,1994.2,1.01080634]
[1742479713879,10.26543,1994.3,1994.2,1.01080634]
[1742479714077,9.2622,1994.3,1994.2,1.01080634]
[1742479714379,7.7037,1994.5,1994.4,1.00318]
[1742479714580,4.4959,1994.5,1994.4,1.00318]
[1742479715180,5.49903,1994.5,1994.4,1.00318]
[1742479715378,4.4959,1994.5,1994.4,1.00318]
[1742479715573,1.0031,1994.6,1994.5,1.00308]
[1742479715778,5.499,1994.6,1994.5,1.00308]
[1742479716174,4.4959,1994.6,1994.5,1.00308]
[1742479716781,4.4959,1994.6,1994.4,1.00313]
[1742479716782,1.00314,1994.5,1994.4,1.00313]
[1742479716978,5.49902,1994.6,1994.5,1.00313]
[1742479717382,4.4959,1994.6,1994.5,1.00313]
[1742479718374,3.2078,1995.0,1994.6,2.50772]
[1742479718687,4.378,1995.0,1994.9,1.00293]
[1742479719077,1.00293,1994.9,1994.8,4.61394]
[1742479719477,4.378,1995.0,1994.9,1.00293]
[1742479719680,1.00293,1994.9,1994.8,3.609]
[1742479719886,1.00293,1994.9,1994.8,1.00298]
[1742479720081,1.00298,1994.8,1994.7,5.66092]
[1742479720391,4.6414,1994.8,1994.7,5.66092]
[1742479720891,5.64438,1994.8,1994.7,5.66092]
[1742479721077,5.64438,1994.8,1994.7,5.66093]
[1742479721283,4.6414,1994.8,1994.7,5.66093]
[1742479721783,1.0029,1995.0,1994.8,1.00295]
[1742479721977,12.20402634,1995.2,1994.8,1.00295]
[1742479721978,5.64433,1994.9,1994.8,1.00295]
[1742479722183,4.6414,1994.9,1994.8,1.00295]
[1742479722390,5.64433,1994.9,1994.8,1.00295]
[1742479722783,1.00298,1994.8,1994.7,1.003]
[1742479722987,5.64438,1994.8,1994.7,1.003]
[1742479723187,4.6414,1994.8,1994.7,1.003]
[1742479723388,14.71098634,1995.2,1994.8,1.00298]
[1742479723584,1.00294,1994.9,1994.6,55.66747]
[1742479723784,1.00294,1994.9,1994.8,1.00294]
[1742479724490,5.53304,1994.9,1994.8,1.00294]
[1742479724687,4.5301,1994.9,1994.8,1.00294]
[1742479725083,1.00286,1995.1,1995.0,1.00288]
[1742479725281,4.5301,1995.1,1995.0,1.00288]
[1742479725484,1.00288,1995.0,1994.9,4.60691]
[1742479726189,5.53297,1995.1,1995.0,1.00288]
[1742479727291,4.5301,1995.1,1994.9,1.00289]
[1742479727490,5.53296,1995.1,1995.0,1.00288]
[1742479727992,4.5301,1995.1,1995.0,1.00288]
[1742479728585,0.00752634,1995.2,1995.1,1.00283]
[1742479729188,0.00752634,1995.2,1995.1,41.80283]
[1742479730191,21.15981071,1995.6,1995.1,41.80283]
[1742479730393,25.49451071,1995.6,1995.5,1.00263]
[1742479730782,24.49193071,1995.6,1995.5,1.00263]
[1742479731194,1.00264,1995.5,1995.4,1.00265]
[1742479731489,4.3347,1995.5,1995.4,1.01017634]
[1742479732091,4.3347,1995.5,1995.4,5.32477634]
[1742479733888,0.00752634,1995.7,1995.4,4.32212634]
[1742479734084,5.62846634,1995.7,1995.6,1.00258]
[1742479734295,4.62592634,1995.7,1995.4,4.32212634]
[1742479734492,4.21041,1995.6,1995.5,1.00263]
[1742479734693,4.21041,1995.6,1995.4,3.61052634]
[1742479734893,4.6184,1995.5,1995.4,4.61318634]
[1742479735499,5.62103,1995.5,1995.4,4.61318634]
[1742479735692,4.6184,1995.5,1995.4,4.61318634]
[1742479736097,9.0393,1995.5,1995.4,4.61318634]
[1742479736599,0.00752634,1995.7,1995.6,1.00258]
[1742479737198,0.00752634,1995.7,1995.6,8.58378]
[1742479738700,1.01005634,1995.7,1995.6,5.37598]
[1742479738999,1.01009634,1995.7,1995.6,1.00258]
[1742479739393,0.00752634,1995.7,1995.6,1.00258]
[1742479739593,1.01005634,1995.7,1995.6,1.00258]
[1742479739802,0.00752634,1995.7,1995.6,1.00258]
[1742479740100,5.66969634,1995.7,1995.6,1.00258]
[1742479740297,4.66712634,1995.7,1995.6,1.00258]
[1742479740695,1.00258,1995.6,1995.5,4.3333]
[1742479740901,1.00263,1995.5,1995.4,46.33652634]
[1742479741107,1.00263,1995.5,1995.4,47.33920634]
[1742479741598,5.36723,1995.5,1995.4,47.33920634]
[1742479742000,4.3646,1995.5,1995.4,47.33920634]
[1742479742999,1.00297,1994.9,1994.5,5.71564]
[1742479743203,4.3646,1994.8,1994.7,1.00303]
[1742479743402,7.6686,1995.6,1994.7,3.2078]
[1742479743705,1.0027,1995.4,1995.3,1.0027]
[1742479743902,1.0027,1995.4,1995.3,1.00269]
[1742479744103,1.00268,1995.4,1995.3,1.00269]
[1742479744399,4.3646,1995.5,1995.2,8.02272634]
[1742479744905,4.3646,1995.5,1995.4,1.00268]
[1742479745097,1.00268,1995.4,1995.3,1.00268]
[1742479745692,1.00273,1995.3,1995.2,9.02546634]
[1742479745899,4.4351,1995.3,1995.2,9.02546634]
[1742479746094,4.387,1995.4,1995.2,9.02546634]
[1742479746400,4.4351,1995.5,1995.4,1.00268]
[1742479746603,0.00752634,1995.7,1995.6,1.00258]
[1742479747602,0.00752634,1995.7,1995.6,4.21038]
[1742479747905,0.00752634,1995.7,1995.6,1.00258]
[1742479748103,1.00258,1995.6,1995.5,51.5549]
[1742479748305,13.2955,1995.6,1995.5,51.5549]
[1742479748701,14.29808,1995.6,1995.5,46.324]
[1742479749002,2.50666,1995.5,1994.8,49.926]
[1742479749206,1.00293,1994.9,1994.8,54.3208]
[1742479749902,1.00293,1994.9,1994.8,46.324]
[1742479750503,1.00291,1995.0,1994.9,1.00293]
[1742479750698,1.00281,1995.2,1995.1,1.00281]
[1742479750904,2.50661,1995.5,1995.0,3.602]
[1742479750905,10.32853,1995.4,1995.0,3.602]
[1742479751207,5.61683,1995.1,1995.0,3.602]
[1742479751695,5.61683,1995.1,1994.8,46.324]
[1742479751696,1.00293,1994.9,1994.8,46.324]
[1742479752308,5.61693,1994.9,1994.8,46.324]
[1742479752614,4.6534,1995.0,1994.9,1.00293]
[1742479752902,1.00288,1995.0,1994.9,5.35381]
[1742479753103,1.00293,1994.9,1994.8,46.324]
[1742479753309,5.61693,1994.9,1994.8,46.324]
[1742479753499,5.61693,1994.9,1994.8,47.32698]
[1742479753696,5.61693,1994.9,1994.8,46.324]
[1742479754104,5.61693,1994.9,1994.8,47.32698]
[1742479754503,5.61693,1994.9,1994.8,46.324]
[1742479755605,5.61693,1994.9,1994.7,0.00501757]
[1742479755606,1.00298,1994.8,1994.7,0.00501757]
[1742479755802,5.48818,1994.8,1994.7,0.00501757]
[1742479756203,8.69598,1994.8,1994.7,0.00501757]
[1742479757110,1.00318,1994.4,1994.3,5.59633]
[1742479757610,1.00318,1994.4,1994.3,4.5931]
[1742479758010,1.00323,1994.3,1994.2,46.33]
[1742479758405,1.00323,1994.3,1994.2,50.9231]
[1742479758909,1.00323,1994.3,1994.2,46.33]
[1742479759214,1.00323,1994.3,1994.2,47.33328]
[1742479759215,5.31913,1994.3,1994.2,47.33328]
[1742479759413,4.3159,1994.3,1994.2,51.92638]
[1742479759614,5.57171,1994.4,1994.3,1.00323]
[1742479759615,4.5685,1994.4,1994.3,1.00323]
[1742479759811,10.02248634,1994.5,1994.4,1.00318]
[1742479760011,0.00752634,1994.5,1994.4,1.00318]
[1742479760218,2.50713,1995.1,1994.7,1.00303]
[1742479760219,1.00301,1994.8,1994.7,1.00303]
[1742479760414,9.33094,1995.1,1994.8,1.00297]
[1742479760415,1.00297,1994.9,1994.8,1.00297]
[1742479760603,1.00291,1995.0,1994.9,1.00289]
[1742479761119,1.00295,1994.9,1994.8,1.00295]
[1742479761309,1.00295,1994.9,1994.8,4.24952634]
[1742479761614,4.21075,1994.9,1994.8,0.00752634]
[1742479762209,4.21075,1994.9,1994.8,4.24952634]
[1742479762613,4.21075,1994.9,1994.8,0.00752634]
[1742479764514,1.01035634,1995.1,1994.8,3.21532634]
[1742479764717,0.00752634,1995.1,1995.0,1.00288]
[1742479764918,0.00752634,1995.1,1995.0,9.19588]
[1742479766411,1.00271,1995.4,1995.3,1.00273]
[1742479767610,1.01018634,1995.5,1995.4,1.00263]
[1742479768120,1.01018634,1995.5,1995.3,1.00269]
[1742479768121,1.00272,1995.4,1995.3,1.00269]
[1742479768817,1.00272,1995.4,1994.9,47.33891]
[1742479768818,1.00288,1995.0,1994.9,47.33891]
[1742479769121,1.00288,1995.0,1994.9,51.72991]
[1742479770223,4.5568,1995.1,1995.0,1.00288]
[1742479770422,4.5568,1995.1,1995.0,5.39388]
[1742479770723,5.55963,1995.1,1995.0,5.39388]
[1742479771315,5.55963,1995.1,1994.9,47.3389]
[1742479771316,1.00288,1995.0,1994.9,47.3389]
[1742479771518,4.5568,1995.1,1995.0,1.00288]
[1742479772023,4.5568,1995.1,1995.0,5.55918]
[1742479772024,9.1264,1995.1,1995.0,5.55918]
[1742479772721,5.70647,1995.3,1995.2,1.00278]
[1742479772916,5.57242,1995.2,1995.1,1.0028]
[1742479773317,4.5696,1995.2,1995.1,1.0028]
[1742479773520,5.70647,1995.3,1995.2,1.00278]
[1742479773820,4.523,1995.4,1995.3,1.00273]
[1742479774022,0.00752634,1995.5,1995.4,1.00268]
[1742479774923,4.57712634,1995.5,1995.4,5.55898]
[1742479775215,0.00752634,1995.5,1995.4,5.55898]
[1742479775626,0.00752634,1995.5,1995.4,10.23038]
[1742479776821,0.00752634,1995.5,1995.4,13.43818]
[1742479777914,6.34e-06,1995.5,1995.4,15.93818]
[1742479778325,15.63583071,1996.0,1995.9,1.00243]
[1742479778530,4.4786,1996.2,1996.1,1.00233]
[1742479779519,20.03183071,1996.3,1996.0,4.5572]
[1742479779520,15.64335705,1996.3,1996.0,5.56709634]
[1742479779727,1.0023,1996.2,1996.1,1.00231]
[1742479780027,1.00233,1996.1,1996.0,4.56472634]
[1742479780422,3.50233,1996.1,1996.0,0.00752634]
[1742479780727,2.50608,1995.9,1995.4,7.9565]
[1742479780928,3.2078,1995.7,1995.2,49.926]
[1742479781125,1.00268,1995.4,1995.3,4.4815]
[1742479782129,1.00266,1995.5,1995.3,4.4815]
[1742479782428,5.56802,1995.6,1995.5,1.00263]
[1742479782617,1.00265,1995.5,1995.4,1.00265]
[1742479782819,1.00268,1995.4,1995.3,4.4815]
[1742479783223,1.00273,1995.3,1995.2,47.33429634]
[1742479784026,1.00273,1995.3,1995.2,0.00752634]
[1742479784224,1.00285,1995.1,1995.0,1.00284]
[1742479784623,1.00282,1995.2,1995.1,1.0028]
[1742479787031,0.00752634,1995.3,1995.2,1.00278]
[1742479787731,0.00752634,1995.3,1995.2,5.42048]
[1742479788226,1.00256,1995.7,1995.6,1.00254]
[1742479788629,1.00263,1995.6,1995.5,1.0026]
[1742479788833,1.00263,1995.6,1995.5,5.4203]
[1742479789923,1.00273,1995.4,1995.3,1.0027]
[1742479790123,1.00273,1995.4,1995.0,5.72252634]
[1742479790124,5.7146,1995.4,1995.0,0.00752634]
[1742479790324,1.00283,1995.2,1995.1,1.00281]
[1742479790629,1.00283,1995.1,1995.0,5.45417634]
[1742479791328,1.00283,1995.1,1995.0,0.00752634]
[1742479792235,5.53283,1995.1,1995.0,0.00752634]
[1742479793545,1.00283,1995.1,1995.0,0.00752634]
[1742479793724,1.00283,1995.1,1995.0,4.46402634]
[1742479793931,4.4164,1995.1,1995.0,5.46690634]
[1742479794139,5.41923,1995.1,1995.0,5.46690634]
[1742479794524,5.41923,1995.1,1995.0,0.00752634]
[1742479794730,5.41923,1995.1,1995.0,1.01040634]
[1742479795125,5.41923,1995.1,1995.0,0.00752634]
[1742479795330,5.41923,1995.1,1995.0,1.01040634]
[1742479796738,5.41923,1995.1,1995.0,0.00752634]
[1742479798333,1.00308,1994.6,1994.5,4.2109]
[1742479798537,2.50746,1994.9,1994.4,4.3232]
[1742479798538,1.00313,1994.5,1994.4,5.32634]
[1742479798739,5.43663,1994.5,1994.4,5.32634]
[1742479798937,4.4335,1994.5,1994.4,5.32634]
[1742479800139,5.43663,1994.5,1994.4,5.32634]
[1742479800340,4.4335,1994.5,1994.4,5.32634]
[1742479800837,0.00752634,1994.6,1994.5,1.00313]
[1742479801032,1.01061634,1994.6,1994.5,5.62613]
[1742479801536,0.00752634,1994.6,1994.5,5.62613]
[1742479801739,1.01060634,1994.6,1994.5,5.62613]
[1742479801940,5.33860634,1994.6,1994.5,4.623]
[1742479802242,5.33860634,1994.6,1994.5,5.62613]
[1742479802538,5.33860634,1994.6,1994.5,4.623]
[1742479802735,1.00318,1994.4,1994.3,3.21532634]
[1742479802928,1.00318,1994.4,1994.3,8.15922634]
[1742479803135,1.00318,1994.4,1994.3,0.00752634]
[1742479803443,5.51368,1994.4,1994.3,0.00752634]
[1742479803642,5.51368,1994.4,1994.3,5.55945634]
[1742479803840,4.5105,1994.4,1994.3,5.55945634]
[1742479804541,5.40226,1994.5,1994.4,1.00318]
[1742479804737,8.9096,1994.5,1994.4,5.55188]
[1742479804932,9.91273,1994.5,1994.4,4.5487]
[1742479805333,4.5105,1994.5,1994.4,5.55188]
[1742479805533,5.51363,1994.5,1994.4,4.5487]
[1742479806046,1.00318,1994.4,1994.3,0.00752634]
[1742479806243,5.28538,1994.4,1994.3,0.00752634]
[1742479806540,9.93218,1994.4,1994.3,0.00752634]
[1742479806739,1.00336,1994.1,1994.0,1.00337]
[1742479807240,1.00333,1994.2,1994.1,1.00331]
[1742479807441,9.86893,1994.2,1994.1,1.00331]
[1742479807641,8.8656,1994.2,1994.0,4.6743]
[1742479807835,1.00333,1994.1,1994.0,5.67765]
[1742479808036,1.00339,1994.0,1993.9,4.60639]
[1742479808243,1.00339,1994.0,1993.9,4.4473]
[1742479808440,1.00339,1994.0,1993.9,5.45074]
[1742479808638,5.28555,1994.1,1994.0,1.00339]
[1742479808834,1.00346,1993.9,1993.8,4.21122]
[1742479809035,4.2822,1994.1,1993.8,4.4473]
[1742479809242,5.28556,1994.1,1994.0,1.00339]
[1742479809540,5.28558,1994.1,1994.0,1.00339]
[1742479809742,1.0034,1994.0,1993.9,1.0034]
[1742479809938,4.5955,1994.0,1993.9,1.0034]
[1742479810338,5.59889,1994.0,1993.9,4.4473]
[1742479810536,1.00354,1993.7,1993.6,49.5478]
[1742479810737,1.00354,1993.7,1993.6,50.7873]
[1742479810938,1.00354,1993.7,1993.6,5.45089]
[1742479811145,1.00354,1993.7,1993.6,4.4473]
[1742479811444,1.00354,1993.7,1993.6,5.45089]
[1742479811636,1.00354,1993.7,1993.6,4.4473]
[1742479811842,1.00354,1993.7,1993.6,5.45089]
[1742479812145,1.00354,1993.7,1993.6,4.4473]
[1742479812444,4.4651,1993.7,1993.6,5.45089]
[1742479812751,5.59901,1993.8,1993.6,4.4473]
[1742479812942,5.59901,1993.8,1993.7,4.4667]
[1742479813449,5.59901,1993.8,1993.5,1.0036]
[1742479813450,1.00359,1993.6,1993.5,1.0036]
[1742479813648,1.00359,1993.6,1993.5,4.4667]
[1742479813947,1.00364,1993.5,1993.3,1.0037]
[1742479814147,10.17144,1993.5,1993.4,1.00369]
[1742479814343,9.1678,1993.5,1993.2,7.6745]
[1742479814543,1.00374,1993.3,1993.2,9.07346]
[1742479814745,1.00374,1993.3,1993.2,5.47049]
[1742479814939,5.28313,1993.4,1993.3,1.00374]
[1742479815138,1.00374,1993.3,1993.2,5.47045]
[1742479815344,5.2831,1993.4,1993.3,1.00374]
[1742479815942,4.2794,1993.4,1993.2,5.47045]
[1742479816143,1.00374,1993.3,1993.2,4.4667]
[1742479816343,1.00374,1993.3,1993.2,5.47049]
[1742479816543,1.00374,1993.3,1993.2,4.4667]
[1742479817148,4.2794,1993.4,1993.1,47.3498]
[1742479817344,1.00374,1993.3,1993.1,47.34981]
[1742479817545,1.00379,1993.2,1993.1,46.346]
[1742479817746,1.00377,1993.3,1993.1,46.346]
[1742479817941,5.28311,1993.4,1993.2,5.47339]
[1742479818254,1.00374,1993.3,1993.2,46.27339]
[1742479818451,4.2794,1993.4,1993.2,46.27339]
[1742479818644,1.0037,1993.4,1993.2,48.4774]
[1742479818844,0.00752634,1993.6,1993.4,1.00367]
[1742479819143,0.00752634,1993.6,1993.5,4.4696]
[1742479819144,1.01111634,1993.6,1993.5,4.4696]
[1742479819847,1.00374,1993.3,1993.2,47.6118]
[1742479820049,1.00374,1993.3,1993.2,4.4696]
[1742479820243,1.00372,1993.4,1993.2,4.4696]
[1742479820552,1.00374,1993.3,1993.2,4.4696]
[1742479820746,1.00373,1993.4,1993.2,5.47334]
[1742479820941,1.00373,1993.4,1993.3,1.00374]
[1742479821151,1.00374,1993.3,1993.2,5.47334]
[1742479821339,1.00373,1993.4,1993.2,5.47334]
[1742479821545,1.00374,1993.3,1993.2,5.47334]
[1742479821946,1.00374,1993.3,1993.2,5.47339]
[1742479822249,1.00372,1993.4,1993.3,1.00372]
[1742479822449,4.6652,1993.5,1993.2,5.47335]
[1742479822450,1.00374,1993.3,1993.2,5.47335]
[1742479822649,4.6652,1993.5,1993.0,11.4577]
[1742479822650,4.6652,1993.5,1993.0,3.2078]
[1742479822946,4.6652,1993.5,1993.3,1.00373]
[1742479822947,1.00374,1993.4,1993.3,1.00373]
[1742479823153,1.00374,1993.3,1993.2,1.00375]
[1742479823353,5.42104,1993.3,1993.2,1.00375]
[1742479823563,4.4173,1993.3,1993.2,1.00375]
[1742479823748,5.66887,1993.5,1993.0,14.57861]
[1742479824055,4.42482634,1993.6,1993.5,1.00364]
[1742479824552,5.42841634,1993.6,1993.5,1.00364]
[1742479824851,1.00364,1993.5,1993.4,4.5602]
[1742479825048,5.42844634,1993.6,1993.5,1.00364]
[1742479825246,0.00752634,1993.6,1993.5,1.00364]
[1742479825453,0.00752634,1993.6,1993.5,9.85484]
[1742479826656,1.00341,1994.0,1993.9,1.00344]
[1742479826854,1.00348,1993.9,1993.8,1.00347]
[1742479827371,1.00349,1993.8,1993.7,4.3755]
[1742479827560,2.50897,1993.6,1993.2,1.00375]
[1742479827756,1.00372,1993.4,1993.3,1.00372]
[1742479828259,1.00374,1993.3,1993.2,0.00752634]
[1742479828554,1.00372,1993.4,1993.2,4.38302634]
[1742479828859,1.00374,1993.3,1993.2,5.38680634]
[1742479829058,1.00371,1993.4,1993.3,1.00371]
[1742479829255,3.21532634,1993.6,1993.2,7.98702634]
[1742479829462,1.00365,1993.5,1993.4,1.00364]
[1742479829655,1.00372,1993.4,1993.3,1.0037]
[1742479829859,1.01112634,1993.6,1993.5,1.00364]
[1742479830060,0.00752634,1993.6,1993.5,1.00364]
[1742479830357,1.01111634,1993.6,1993.5,5.46134]
[1742479830659,0.00752634,1993.6,1993.5,5.46134]
[1742479830857,1.00369,1993.4,1993.3,4.6987]
[1742479831065,5.43227,1993.5,1993.3,1.00369]
[1742479831356,5.43227,1993.5,1993.4,4.4577]
[1742479831556,0.00752634,1993.6,1993.4,5.46139]
[1742479831859,1.00364,1993.5,1993.4,4.4577]
[1742479832257,1.00374,1993.3,1993.2,0.00752634]
[1742479832956,1.00388,1993.1,1993.0,1.00388]
[1742479833150,1.00388,1993.1,1992.9,4.5068]
[1742479833151,1.00389,1993.0,1992.9,4.5068]
[1742479833357,5.50199,1993.0,1992.9,5.51074]
[1742479833552,5.50199,1993.0,1992.9,4.5068]
[1742479834056,1.00399,1992.8,1992.7,46.367]
[1742479834359,1.00399,1992.8,1992.7,4.5068]
[1742479834556,1.00404,1992.7,1992.6,1.00407]
[1742479834755,1.00402,1992.8,1992.7,1.00404]
[1742479834957,1.00404,1992.7,1992.6,4.5068]
[1742479835157,5.50214,1992.7,1992.6,4.5068]
[1742479835664,1.00409,1992.6,1992.5,3.604]
[1742479835855,5.54299,1992.6,1992.5,3.604]
[1742479836256,5.54299,1992.6,1992.5,7.8497]
[1742479836459,4.5389,1992.6,1992.2,49.5758]
[1742479836763,5.71819,1992.5,1992.0,44.404]
[1742479836960,1.00426,1992.3,1992.1,1.00431]
[1742479837158,5.54319,1992.2,1992.1,4.2457]
[1742479837353,4.5389,1992.2,1992.1,5.25004]
[1742479838862,5.54319,1992.2,1992.1,4.2457]
[1742479839358,1.00439,1992.0,1991.9,40.8]
[1742479839667,1.00442,1992.0,1991.8,5.27567]
[1742479839853,4.5758,1991.9,1991.8,5.27567]
[1742479840058,1.00432,1992.2,1992.0,1.00439]
[1742479840262,1.00434,1992.1,1992.0,1.00439]
[1742479840468,1.00432,1992.2,1992.0,1.00439]
[1742479840764,7.622,1992.4,1992.0,1.00439]
[1742479841060,7.622,1992.4,1991.8,44.0078]
[1742479841061,1.00444,1991.9,1991.8,44.0078]
[1742479841265,2.51061,1992.3,1991.4,3.2078]
[1742479841266,1.00451,1991.8,1991.4,3.2078]
[1742479841458,4.5758,1991.8,1991.7,1.00454]
[1742479841660,3.605,1992.1,1991.8,1.00446]
[1742479841963,5.31877,1992.1,1991.9,5.48231]
[1742479842167,1.00439,1992.0,1991.9,4.4779]
[1742479842355,1.00449,1991.8,1991.7,3.605]
[1742479842557,1.00449,1991.8,1991.7,4.4779]
[1742479842763,1.00449,1991.8,1991.7,5.48244]
[1742479843162,1.00449,1991.8,1991.7,4.4779]
[1742479843563,1.00449,1991.9,1991.7,5.48244]
[1742479843771,4.5444,1992.0,1991.9,1.00444]
[1742479844360,8.8588,1992.0,1991.9,1.00444]
[1742479844971,9.86319,1992.0,1991.8,1.00445]
[1742479845265,1.00449,1991.8,1991.7,4.21233]
[1742479845469,5.53268,1991.9,1991.7,4.2575]
[1742479845664,4.5027,1991.8,1991.7,5.26204]
[1742479845866,4.5027,1991.8,1991.7,8.46984]
[1742479846084,1.0042,1992.4,1991.8,2.51124]
[1742479846269,4.303,1992.5,1991.9,9.32389]
[1742479846467,5.30717,1992.5,1992.3,1.00419]
[1742479846770,4.303,1992.5,1992.1,3.2078]